Workbook

Sheet 내역
A2: 공 사 명 :부천대학교 산업디자인과, 전기과 강의실 환경개선공사(전기)
A3: 일 금: 금 원정(\ ) *VAT포함
A4: 비 목 | E4: 금 액 | I4: 구 성 면 | M4: 비 고
A5: 순 공 사 원 가 | B5: 재 료 비 | C5: 직 접 재 료 비 | E5: =I47 -> 0
C6: 간 접 재 료 비
C7: [소 계] | E7: =SUM(E5:H6) -> 0 | AV7: 0
B8: 노 무 비 | C8: 직 접 노 무 비 | E8: =K47 -> 0
C9: 간 접 노 무 비
C10: [소 계] | E10: =SUM(E8:H9) -> 0
B11: 경 비 | C11: 산 재 보 험 료 | E11: =TRUNC(E10*3.8%,0) -> 0 | I11: 노무비의3.8%
C12: 고 용 보 험 료 | E12: =TRUNC(E10*0.87%,0) -> 0 | I12: 노무비의0.87%
C13: 안 전 관 리 비
C14: 건 강 보 험 료
C15: 연 금 보 험 료
C16: 기 타 경 비 | E16: =SUM(E7+E10)*0% -> 0
C17: [소 계] | E17: =SUM(E11:H16) -> 0
A18: 계 | E18: =SUM(E7+E10+E17) -> 0
A19: 일 반 관 리 비 | E19: =SUM(E18)*0.06 -> 0 | I19: 계의 6%
A20: 이 윤 | E20: =SUM(E10+E17+E19)*0.15 -> 0 | I20: (노무비+경비+일반관리비)의 15%
A21: 공 사 비 | E21: =SUM(E18,E19,E20) -> 0 | I21: (계+일반관리비+이윤)
A22: 부 가 가 치 세 | E22: =E21*0.1 -> 0 | I22: 공사비의10%
A23: 총 공 사 비 | E23: =SUM(E21:H22) -> 0
A24: 공 종 별 집 계 표
A25: 공 사 명 :전기공사
A26: 품 명 | E26: 공 종 | H26: 재 료 비 | J26: 노 무 비 | L26: 경 비 | N26: 합 계 | P26: 비고
H27: 단 가 | I27: 금 액 | J27: 단 가 | K27: 금 액 | L27: 단 가 | M27: 금 액 | N27: 단 가 | O27: 금 액
A28: =A51 -> 01.전기공사[422호] | I28: =I76 -> 0 | K28: =K76 -> 0 | M28: =M76 -> 0 | O28: =SUM(I28,K28,M28) -> 0
A29: =A80 -> 02.전기공사[432호] | I29: =I103 -> 0 | K29: =K103 -> 0 | O29: 0
A30: =A107 -> 03.전기공사[502호] | I30: =I124 -> 0 | K30: =K124 -> 0 | O30: =SUM(I30,K30,M30) -> 0
A47: [합 계] | I47: =SUM(I28:I46) -> 0 | K47: =SUM(K28:K46) -> 0 | M47: =SUM(M28:M46) -> 0 | O47: =SUM(I47+K47+M47) -> 0
A48: 공 사 명 : 전기공사
A49: 품 명 | D49: 규 격 | E49: 단위 | F49: 설계 | G49: 수량 | H49: 재 료 비 | J49: 노 무 비 | L49: 경 비 | N49: 합 계 | P49: 비고
H50: 단 가 | I50: 금 액 | J50: 단 가 | K50: 금 액 | L50: 단 가 | M50: 금 액 | N50: 단 가 | O50: 금 액
A51: 01.전기공사[422호] | X51: 내선전공 | Y51: 저케공 | Z51: 배전전공 | AA51: 보통인부 | AB51: 내선전공 | AC51: 저케공 | AD51: 배전전공 | AE51: 보통인부 | AG51: 결정량
A52: CABLE DUCT | D52: W100*H100*1.0t | E52: M | G52: 115 | I52: =G52*H52 -> 0 | K52: =SUM(J52)*G52 -> 0 | N52: =SUM(H52,J52,L52) -> 0 | O52: 0 | T52: CABLE TRAY | W52: W300*H100*1.0t | X52: 0.285 | AB52: =G52*X52 -> 32.775
A53: CABLE DUCT COVER | D53: W100*1.0t | E53: M | G53: 115 | I53: 0 | K53: 0 | N53: 0 | O53: 0 | T53: CABLE TRAY COVER | W53: W300*1.0t | X53: 0.057 | AB53: 6.555
A54: H-TEE | D54: W100*H100*1.0t | E54: EA | G54: 2 | I54: 0 | K54: 0 | N54: 0 | O54: 0 | T54: H-TEE | W54: W300*H100*1.0t | X54: 0.285 | AB54: 0.57
A55: H-CROSS | D55: W100*H100*1.0t | E55: EA | G55: 1 | I55: 0 | K55: 0 | N55: 0 | O55: 0 | T55: H-CROSS | W55: W300*H100*1.0t | X55: 0.285 | AB55: 0.285
A56: JOINT CONNECTOR | D56: H100*1.0t | E56: EA | G56: 58 | I56: 0 | K56: 0 | N56: 0 | O56: 0 | T56: JOINT CONNECTOR | W56: H100*1.0t | AB56: 0
A57: BOND JUMPER | D57: 38" | E57: EA | G57: 29 | I57: 0 | K57: 0 | N57: 0 | O57: 0 | T57: BOND JUMPER | W57: 38" | AB57: 0
A58: SHANK BOLT&NUT | D58: 3/8"(STEEL) | E58: EA | G58: 464 | I58: 0 | K58: 0 | N58: 0 | O58: 0 | T58: SHANK BOLT&NUT | W58: 3/8"(STEEL) | AB58: 0
A59: UTP케이블 | D59: CAT.6 | E59: M | G59: 650 | I59: =G59*H59 -> 0 | K59: 0 | N59: =SUM(H59,J59,L59) -> 0 | O59: 0 | P59: LS | T59: UTP케이블 | W59: 8P | Y59: 0.018 | AB59: =G59*Y59 -> 11.7
A60: 트래이용 난연성케이블 | D60: F-CV 4㎟*3 | E60: M | G60: 100 | I60: =G60*H60 -> 0 | K60: 0 | N60: 0 | O60: 0 | T60: F-CV전선 | W60: F-CV 4㎟*3 | Y60: 0.022 | AB60: =G60*Y60 -> 2.2 | AC60: =G60*X60 -> 0 | AH60: =AD60*AG60 -> 0 | AI60: =AH60*0.8 -> 0
A61: PVC박스 | D61: 4구용 | E61: 개 | G61: 45 | I61: =G61*H61 -> 0 | K61: 0 | N61: =SUM(H61,J61,L61) -> 0 | O61: 0 | T61: 4각박스 | W61: 44mm | X61: 0.2 | AB61: =G61*X61 -> 9
A62: 콘센트 | D62: 220V,15A 매-접 4구 | E62: 개 | G62: 45 | I62: =G62*H62 -> 0 | K62: 0 | N62: =SUM(H62,J62,L62) -> 0 | O62: =SUM(I62,K62,M62) -> 0 | T62: 콘센트 | W62: 220V,15A 매-접 2구 | X62: 0.08 | AB62: =G62*X62 -> 3.6
A63: 통신렉장비 및 허브 | E63: 개 | G63: 1 | I63: =G63*H63 -> 0 | K63: 0 | N63: =SUM(H63,J63,L63) -> 0 | O63: =SUM(I63,K63,M63) -> 0
A64: 전등 | D64: LED매입평판 | E64: 조 | G64: 9 | I64: 0 | K64: 0 | N64: 0 | O64: 0 | X64: 0.418 | AB64: 3.762
A65: 전등 | D65: LED칠판등 | E65: 조 | G65: 1 | I65: 0 | K65: 0 | N65: 0 | O65: 0 | X65: 0.418 | AB65: 0.418
A66: 감지기 | D66: 차동식 | E66: 개 | G66: 2 | I66: =G66*H66 -> 0 | K66: 0 | N66: 0 | O66: 0 | T66: 감지기 | W66: 차동식 | X66: 0.13 | AB66: =G66*X66 -> 0.26
A67: 유도등 | D67: 피난구유도등 | E67: 개 | G67: 0 | I67: =G67*H67 -> 0 | K67: 0 | N67: 0 | O67: 0 | T67: 유도등 | W67: 벽부형 | X67: 0.2 | AB67: =G67*X67 -> 0
A68: 스피커 | D68: 천정형 | E68: 조 | G68: 0 | I68: 0 | K68: 0 | N68: =SUM(H68,J68,L68) -> 0 | O68: =SUM(I68,K68,M68) -> 0 | T68: 스피커 | W68: 천정형 | X68: 0.245 | AB68: =G68*X68 -> 0
A69: 배관부속 | D69: 배관의 15% | E69: 식 | G69: 1 | I69: 0 | K69: 0 | N69: =SUM(H69,J69,L69) -> 0 | O69: =SUM(I69,K69,M69) -> 0
A70: 잡재료비 | D70: 배관배선의 2.00 % | E70: 식 | G70: 1 | I70: 0 | K70: 0 | N70: 0 | O70: =SUM(I70,K70,M70) -> 0
A71: 노무비 | D71: 내선전공 | E71: 인 | G71: 27 | I71: 0 | K71: =SUM(J71)*G71 -> 0 | N71: 0 | O71: =SUM(I71,K71,M71) -> 0 | X71: 내선전공 | AB71: =SUM(AB52:AB70) -> 71.125 | AG71: =SUM(AB71)*#REF! -> 
A72: 철거 | E72: 식 | G72: 1 | I72: 0 | K72: =SUM(J72)*G72 -> 0 | N72: 0 | O72: 0
A73: 공구손료 | D73: 노무비의3.00 % | E73: 식 | G73: 1 | I73: 0 | K73: 0 | N73: 0 | O73: 0
E74: 식 | G74: 1
A76: [합 계] | I76: =SUM(I52:I75) -> 0 | K76: =SUM(K71:K75) -> 0 | O76: =SUM(I76+K76+M76) -> 0
A77: 공 사 명 : 전기공사
A78: 품 명 | D78: 규 격 | E78: 단위 | F78: 설계 | G78: 수량 | H78: 재 료 비 | J78: 노 무 비 | L78: 경 비 | N78: 합 계 | P78: 비고
H79: 단 가 | I79: 금 액 | J79: 단 가 | K79: 금 액 | L79: 단 가 | M79: 금 액 | N79: 단 가 | O79: 금 액
A80: 02.전기공사[432호]
A81: 난연성CD | D81: 16mm | E81: M | F81: 19 | G81: 200 | I81: =G81*H81 -> 0 | K81: =SUM(J81)*G81 -> 0 | N81: =SUM(H81,J81,L81) -> 0 | O81: =SUM(I81,K81,M81) -> 0 | T81: 난연성cd | W81: 16mm | X81: 0.04 | AB81: =G81*X81 -> 8
A82: 난연성CD | D82: 28mm | E82: M | F82: 19 | G82: 60 | I82: =G82*H82 -> 0 | K82: 0 | N82: 0 | O82: 0 | T82: 난연성cd | W82: 28mm | X82: 0.064 | AB82: =G82*X82 -> 3.84
A83: 600V 비닐절연전선 | D83: HFIX 2.5㎟ | E83: M | G83: 600 | I83: =G83*H83 -> 0 | K83: 0 | N83: =SUM(H83,J83,L83) -> 0 | O83: =SUM(I83,K83,M83) -> 0 | T83: HIV전선 | W83: 2.5㎟ | X83: 0.01 | AB83: =G83*X83 -> 6
A84: 트래이용 난연성케이블 | D84: F-CV 10㎟*4C | E84: M | G84: 120 | I84: =G84*H84 -> 0 | K84: 0 | N84: =SUM(H84,J84,L84) -> 0 | O84: 0 | T84: 트래이용 난연성케이블 | W84: F-CV 10㎟*4C | Y84: 0.049 | AB84: =G84*Y84 -> 5.88
A85: 접지용선 | D85: F-GV 6㎟*1C | E85: M | G85: 120 | I85: 0 | K85: 0 | N85: 0 | O85: 0 | T85: 접지용선 | W85: F-GV 6㎟*1C | X85: 0.01 | AB85: =G85*X85 -> 1.2 | AD85: =G85*Y85 -> 0
A86: 아우트렛박스 | D86: 4각 54㎜ | E86: 개 | G86: 40 | I86: =G86*H86 -> 0 | K86: 0 | N86: 0 | O86: 0 | T86: 아우트렛박스 | W86: 8각 54㎜ | X86: 0.2 | AB86: =G86*X86 -> 8
A87: 콘센트 | D87: 220V,15A 매-접 2구 | E87: 개 | G87: 20 | I87: =G87*H87 -> 0 | K87: 0 | N87: 0 | O87: 0 | T87: 콘센트 | W87: 220V,15A 매-접 2구 | X87: 0.08 | AB87: =G87*X87 -> 1.6
A88: 콘센트 | D88: 110V,15A 매-접 2구 | E88: 개 | G88: 20 | I88: =G88*H88 -> 0 | K88: 0 | N88: =SUM(H88,J88,L88) -> 0 | O88: =SUM(I88,K88,M88) -> 0 | T88: 콘센트 | W88: 220V,15A 매-접 2구 | X88: 0.08 | AB88: =G88*X88 -> 1.6
A89: 분전함 | D89: 50A | E89: 면 | G89: 1 | I89: 0 | K89: 0 | N89: 0 | O89: 0 | W89: L-201,301 | X89: 0.79092 | AB89: =G89*X89 -> 0.79092
A90: 전등 | D90: LED매입평판 | E90: 조 | G90: 9 | I90: 0 | K90: 0 | N90: 0 | O90: 0 | T90: 전등 | W90: 매입슬림 32W 2등용 | X90: 0.418 | AB90: =G90*X90 -> 3.762
A91: 전등 | D91: LED칠판등 | E91: 조 | G91: 1 | I91: 0 | K91: 0 | N91: 0 | O91: 0 | X91: 0.418 | AB91: =G91*X91 -> 0.418
A92: 감지기 | D92: 차동식 | E92: 개 | G92: 2 | I92: 0 | K92: 0 | N92: 0 | O92: 0 | T92: 감지기 | W92: 차동식 | X92: 0.13 | AB92: =G92*X92 -> 0.26
A93: 유도등 | D93: 피난구유도등 | E93: 개 | G93: 0 | I93: 0 | K93: 0 | N93: 0 | O93: 0 | T93: 유도등 | W93: 벽부형 | X93: 0.2 | AB93: 0
A94: 트랜스 | D94: 220v/110v/5kw | E94: 개 | G94: 1 | I94: 0 | K94: 0 | N94: 0 | O94: 0
A95: 스피커 | D95: 천정형 | E95: 조 | G95: 0 | I95: 0 | K95: 0 | N95: =SUM(H95,J95,L95) -> 0 | O95: =SUM(I95,K95,M95) -> 0 | T95: 스피커 | W95: 천정형 | X95: 0.245 | AB95: =G95*X95 -> 0
A96: 배관부속 | D96: 배관의 15% | E96: 식 | G96: 1 | I96: =SUM(I81:I82)*0.15 -> 0 | K96: 0 | N96: =SUM(H96,J96,L96) -> 0 | O96: =SUM(I96,K96,M96) -> 0
A97: 잡재료비 | D97: 배관배선의 2.00 % | E97: 식 | G97: 1 | I97: =SUM(I81:I85)*0.02 -> 0 | K97: 0 | N97: 0 | O97: 0
A98: 노무비 | D98: 내선전공 | E98: 인 | G98: 19 | K98: 0 | N98: 0 | O98: 0 | AB98: =SUM(AB81:AB94) -> 41.35092 | AG98: =SUM(AB98)*#REF! -> 
A99: 철거 | E99: 식 | G99: 1 | K99: 0 | N99: 0 | O99: 0
A100: 공구손료 | D100: 노무비의3.00 % | E100: 식 | G100: 1 | I100: =SUM(K98)*0.03 -> 0 | K100: 0 | N100: 0 | O100: 0
A103: [합 계] | I103: =SUM(I81:I100) -> 0 | K103: =SUM(K81:K100) -> 0 | O103: =SUM(I103+K103+M103) -> 0
A104: 공 사 명 : 전기공사
A105: 품 명 | D105: 규 격 | E105: 단위 | F105: 설계 | G105: 수량 | H105: 재 료 비 | J105: 노 무 비 | L105: 경 비 | N105: 합 계 | P105: 비고
H106: 단 가 | I106: 금 액 | J106: 단 가 | K106: 금 액 | L106: 단 가 | M106: 금 액 | N106: 단 가 | O106: 금 액
A107: 03.전기공사[502호]
A108: 난연성CD | D108: 16mm | E108: M | F108: 19 | G108: 200 | I108: =G108*H108 -> 0 | N108: =SUM(H108,J108,L108) -> 0 | O108: =SUM(I108,K108,M108) -> 0 | T108: 난연성cd | W108: 16mm | X108: 0.04 | AB108: =G108*X108 -> 8
A109: 600V 비닐절연전선 | D109: HFIX 2.5㎟ | E109: M | G109: 400 | I109: =G109*H109 -> 0 | N109: =SUM(H109,J109,L109) -> 0 | O109: =SUM(I109,K109,M109) -> 0 | T109: HIV전선 | W109: 2.5㎟ | X109: 0.01 | AB109: =G109*X109 -> 4
A110: 전등 | D110: LED매입평판 | E110: 조 | G110: 24 | I110: =G110*H110 -> 0 | N110: =SUM(H110,J110,L110) -> 0 | O110: =SUM(I110,K110,M110) -> 0 | T110: 전등 | W110: 매입슬림 32W 2등용 | X110: 0.418 | AB110: =G110*X110 -> 10.032
A111: 전등 | D111: LED칠판등 | E111: 조 | G111: 2 | I111: 0 | N111: 0 | O111: 0 | X111: 0.418 | AB111: =G111*X111 -> 0.836
A112: 스위치 | D112: 220,15A 3구 | E112: 개 | G112: 2 | I112: 0 | N112: 0 | O112: 0 | T112: 스위치 | W112: 220,15A 3구 | X112: 0.119 | AB112: =G112*X112 -> 0.238
A113: 스위치박스 | D113: 1개용 54㎜ | E113: 개 | G113: 2 | I113: =G113*H113 -> 0 | N113: 0 | O113: 0 | T113: 스위치박스 | W113: 4각 54㎜ | X113: 0.2 | AB113: =G113*X113 -> 0.4
A114: 감지기 | D114: 차동식 | E114: 개 | G114: 4 | I114: =G114*H114 -> 0 | N114: 0 | O114: 0 | T114: 감지기 | W114: 차동식 | X114: 0.13 | AB114: =G114*X114 -> 0.52
A115: 유도등 | D115: 피난구유도등 | E115: 개 | G115: 0 | I115: 0 | N115: 0 | O115: 0 | T115: 유도등 | W115: 벽부형 | X115: 0.2 | AB115: 0
A116: 스피커 | D116: 천정형 | E116: 조 | G116: 0 | I116: 0 | N116: =SUM(H116,J116,L116) -> 0 | O116: =SUM(I116,K116,M116) -> 0 | T116: 스피커 | W116: 천정형 | X116: 0.245 | AB116: =G116*X116 -> 0
A117: 배관부속 | D117: 배관의 15% | E117: 식 | G117: 1 | I117: =SUM(I108:I108)*0.15 -> 0 | N117: =SUM(H117,J117,L117) -> 0 | O117: 0
A118: 잡재료비 | D118: 배관배선의 2.00 % | E118: 식 | G118: 1 | I118: =SUM(I108:I109)*0.02 -> 0 | N118: 0 | O118: 0
A119: 노무비 | D119: 내선전공 | E119: 인 | G119: 11 | K119: =SUM(J119)*G119 -> 0 | N119: 0 | O119: 0 | AB119: =SUM(AB108:AB118) -> 24.026 | AG119: =SUM(AB119*#REF!) -> 
A120: 철거 | E120: 식 | G120: 1 | K120: =SUM(J120)*G120 -> 0 | N120: 0 | O120: 0
A121: 공구손료 | D121: 노무비의3.00 % | E121: 식 | G121: 1 | I121: =SUM(K119)*0.03 -> 0 | K121: =SUM(J121)*G121 -> 0 | N121: 0 | O121: 0
A124: [합 계] | I124: =SUM(I108:I121) -> 0 | K124: =SUM(K108:K121) -> 0 | O124: =SUM(I124+K124+M124) -> 0
